[Event "January 2 Early 2024"]
[Site "https://www.chess.com"]
[Date "2024.01.02"]
[Round "10"]
[White "Shubenkova, Veronika"]
[Black "Narayanan, Srinath"]
[Result "0-1"]
[Board "55"]
[TimeControl "180+1"]
[WhiteFideId "44124040"]
[BlackFideId "5018420"]
[WhiteElo "2599"]
[BlackElo "2820"]
[WhiteTeam "RUS"]
[BlackTeam "IND"]
[WhiteClock "0:00:00"]
[BlackClock "0:00:08"]

1. d4 {[%clk 0:03:00]}  f5 {[%clk 0:02:59]} 2. e3 {[%clk 0:03:00]}  Nf6 {[%clk 0:02:59]} 3. f4 {[%clk 0:03:00]}  g6 {[%clk 0:02:59]} 4. Nf3 {[%clk 0:03:00]}  Bg7 {[%clk 0:02:59]} 5. c3 {[%clk 0:03:00]}  d6 {[%clk 0:03:00]} 6. Bd3 {[%clk 0:03:00]}  Nbd7 {[%clk 0:03:00]} 7. Ng5 {[%clk 0:02:59]}  Nf8 {[%clk 0:02:59]} 8. O-O {[%clk 0:02:58]}  h6 {[%clk 0:02:59]} 9. Nf3 {[%clk 0:02:58]}  N8d7 {[%clk 0:02:59]} 10. Qb3 {[%clk 0:02:57]}  Nf8 {[%clk 0:02:54]} 11. Nbd2 {[%clk 0:02:56]}  Be6 {[%clk 0:02:49]} 12. c4 {[%clk 0:02:55]}  d5 {[%clk 0:02:48]} 13. Qxb7 {[%clk 0:02:48]}  N8d7 {[%clk 0:02:47]} 14. Qa6 {[%clk 0:02:46]}  Bf7 {[%clk 0:02:45]} 15. Ne5 {[%clk 0:02:41]}  Nxe5 {[%clk 0:02:42]} 16. fxe5 {[%clk 0:02:39]}  Ne4 {[%clk 0:02:43]} 17. Nxe4 {[%clk 0:02:38]}  dxe4 {[%clk 0:02:44]} 18. Bc2 {[%clk 0:02:29]}  O-O {[%clk 0:02:43]} 19. Bb3 {[%clk 0:02:24]}  Kh7 {[%clk 0:02:43]} 20. Qa5 {[%clk 0:02:19]}  Be8 {[%clk 0:02:38]} 21. Bd2 {[%clk 0:02:17]}  e6 {[%clk 0:02:28]} 22. Bb4 {[%clk 0:02:14]}  Rf7 {[%clk 0:02:27]} 23. Rad1 {[%clk 0:02:13]}  Rb8 {[%clk 0:02:20]} 24. Bc3 {[%clk 0:02:11]}  Rd7 {[%clk 0:02:16]} 25. d5 {[%clk 0:02:11]}  Bf7 {[%clk 0:02:16]} 26. Qxa7 {[%clk 0:02:06]}  c6 {[%clk 0:01:57]} 27. Qc5 {[%clk 0:01:55]}  cxd5 {[%clk 0:01:52]} 28. cxd5 {[%clk 0:01:53]}  exd5 {[%clk 0:01:50]} 29. Rd2 {[%clk 0:01:48]}  Be6 {[%clk 0:01:41]} 30. Rfd1 {[%clk 0:01:44]}  Rc8 {[%clk 0:01:42]} 31. Qa3 {[%clk 0:01:29]}  Bf8 {[%clk 0:01:37]} 32. Bb4 {[%clk 0:01:26]}  Ra8 {[%clk 0:01:22]} 33. Ba4 {[%clk 0:01:12]}  Rda7 {[%clk 0:01:09]} 34. Bxf8 {[%clk 0:01:12]}  Rxa4 {[%clk 0:01:06]} 35. Qd6 {[%clk 0:01:11]}  Qxd6 {[%clk 0:01:00]} 36. Bxd6 {[%clk 0:01:09]}  Rxa2 {[%clk 0:01:00]} 37. b4 {[%clk 0:01:09]}  Rxd2 {[%clk 0:00:48]} 38. Rxd2 {[%clk 0:01:09]}  f4 {[%clk 0:00:49]} 39. exf4 {[%clk 0:00:54]}  e3 {[%clk 0:00:46]} 40. Rd1 {[%clk 0:00:54]}  d4 {[%clk 0:00:47]} 41. Bc5 {[%clk 0:00:44]}  e2 {[%clk 0:00:40]} 42. Re1 {[%clk 0:00:43]}  d3 {[%clk 0:00:39]} 43. Be3 {[%clk 0:00:43]}  Ra2 {[%clk 0:00:38]} 44. Kf2 {[%clk 0:00:33]}  Bc4 {[%clk 0:00:38]} 45. Rc1 {[%clk 0:00:29]}  Bb5 {[%clk 0:00:28]} 46. Ke1 {[%clk 0:00:25]}  Kg8 {[%clk 0:00:24]} 47. Bd2 {[%clk 0:00:22]}  Kf7 {[%clk 0:00:24]} 48. Be3 {[%clk 0:00:19]}  Ke6 {[%clk 0:00:23]} 49. Bd2 {[%clk 0:00:16]}  Kf5 {[%clk 0:00:22]} 50. Rc5 {[%clk 0:00:09]}  Bd7 {[%clk 0:00:20]} 51. Rd5 {[%clk 0:00:07]}  Ra1+ {[%clk 0:00:16]} 52. Kf2 {[%clk 0:00:07]}  Rf1+ {[%clk 0:00:10]} 53. Ke3 {[%clk 0:00:03]}  e1=Q+ {[%clk 0:00:09]} 54. Bxe1 {[%clk 0:00:03]}  Rxe1+ {[%clk 0:00:10]} 55. Kd2 {[%clk 0:00:03]}  Be6 {[%clk 0:00:07]} 56. Rxd3 {[%clk 0:00:02]}  Rg1 {[%clk 0:00:06]} 57. Kc3 {[%clk 0:00:01]}  Rxg2 {[%clk 0:00:06]} 58. Kd4 {[%clk 0:00:02]}  Kxf4 {[%clk 0:00:05]} 59. Kc5 {[%clk 0:00:03]}  Kxe5 {[%clk 0:00:04]} 60. Re3+ {[%clk 0:00:03]}  Kf6 {[%clk 0:00:04]} 61. b5 {[%clk 0:00:03]}  Rc2+ {[%clk 0:00:04]} 62. Kd6 {[%clk 0:00:03]}  Bf5 {[%clk 0:00:02]} 63. b6 {[%clk 0:00:03]}  Rd2+ {[%clk 0:00:02]} 64. Kc7 {[%clk 0:00:03]}  Rc2+ {[%clk 0:00:03]} 65. Kb8 {[%clk 0:00:03]}  Bc8 {[%clk 0:00:03]} 66. Rd3 {[%clk 0:00:03]}  Ba6 {[%clk 0:00:03]} 67. Rd6+ {[%clk 0:00:03]}  Kf5 {[%clk 0:00:02]} 68. Rd5+ {[%clk 0:00:03]}  Kf6 {[%clk 0:00:02]} 69. Ra5 {[%clk 0:00:03]}  Bc8 {[%clk 0:00:02]} 70. Rd5 {[%clk 0:00:03]}  Be6 {[%clk 0:00:02]} 71. Rd6 {[%clk 0:00:04]}  Ke7 {[%clk 0:00:03]} 72. Rd4 {[%clk 0:00:04]}  Rb2 {[%clk 0:00:03]} 73. b7 {[%clk 0:00:04]}  Bh3 {[%clk 0:00:03]} 74. Rd3 {[%clk 0:00:04]}  Bg2 {[%clk 0:00:02]} 75. Re3+ {[%clk 0:00:04]}  Kf6 {[%clk 0:00:02]} 76. Kc8 {[%clk 0:00:02]}  Bxb7+ {[%clk 0:00:03]} 77. Kd8 {[%clk 0:00:02]}  Bg2 {[%clk 0:00:03]} 78. h4 {[%clk 0:00:02]}  Bd5 {[%clk 0:00:04]} 79. Rg3 {[%clk 0:00:02]}  Bf7 {[%clk 0:00:04]} 80. Kc7 {[%clk 0:00:02]}  Kg7 {[%clk 0:00:05]} 81. Kd6 {[%clk 0:00:02]}  Re2 {[%clk 0:00:05]} 82. Kd7 {[%clk 0:00:02]}  Re6 {[%clk 0:00:06]} 83. Kd8 {[%clk 0:00:02]}  Rf6 {[%clk 0:00:07]} 84. Ke7 {[%clk 0:00:02]}  Rf5 {[%clk 0:00:08]} 85. h5 {[%clk 0:00:00]}  Rxh5 {[%clk 0:00:08]} 0-1

[Event "January 2 Early 2024"]
[Site "https://www.chess.com"]
[Date "2024.01.02"]
[Round "10"]
[White "Ginzburg, Yakov"]
[Black "Korchmar, Vasiliy"]
[Result "0-1"]
[Board "58"]
[TimeControl "180+1"]
[WhiteFideId "4157176"]
[BlackFideId "24131750"]
[WhiteElo "2562"]
[BlackElo "2743"]
[WhiteTeam "RUS"]
[BlackTeam "RUS"]
[WhiteClock "0:00:00"]
[BlackClock "0:00:04"]

1. d4 {[%clk 0:03:00]}  Nf6 {[%clk 0:02:58]} 2. c4 {[%clk 0:02:58]}  g6 {[%clk 0:02:59]} 3. Nc3 {[%clk 0:02:56]}  d5 {[%clk 0:02:55]} 4. cxd5 {[%clk 0:02:56]}  Nxd5 {[%clk 0:02:55]} 5. e4 {[%clk 0:02:57]}  Nxc3 {[%clk 0:02:55]} 6. bxc3 {[%clk 0:02:58]}  Bg7 {[%clk 0:02:56]} 7. Nf3 {[%clk 0:02:58]}  O-O {[%clk 0:02:57]} 8. Rb1 {[%clk 0:02:57]}  c5 {[%clk 0:02:57]} 9. Be2 {[%clk 0:02:57]}  b6 {[%clk 0:02:57]} 10. O-O {[%clk 0:02:55]}  Bb7 {[%clk 0:02:57]} 11. Qd3 {[%clk 0:02:55]}  e6 {[%clk 0:02:56]} 12. Bf4 {[%clk 0:02:48]}  Qe7 {[%clk 0:02:26]} 13. d5 {[%clk 0:02:38]}  Nd7 {[%clk 0:02:21]} 14. c4 {[%clk 0:02:30]}  e5 {[%clk 0:02:17]} 15. Bd2 {[%clk 0:02:23]}  Nf6 {[%clk 0:02:14]} 16. Bc3 {[%clk 0:02:12]}  Ne8 {[%clk 0:02:14]} 17. Nd2 {[%clk 0:01:51]}  Nd6 {[%clk 0:02:12]} 18. Qe3 {[%clk 0:01:47]}  Ba6 {[%clk 0:02:08]} 19. g3 {[%clk 0:01:42]}  Rae8 {[%clk 0:02:07]} 20. Bd3 {[%clk 0:01:34]}  f5 {[%clk 0:02:03]} 21. exf5 {[%clk 0:01:09]}  gxf5 {[%clk 0:01:58]} 22. f4 {[%clk 0:00:59]}  e4 {[%clk 0:01:38]} 23. Bxg7 {[%clk 0:00:59]}  Qxg7 {[%clk 0:01:39]} 24. Be2 {[%clk 0:00:58]}  Qd4 {[%clk 0:01:40]} 25. Kf2 {[%clk 0:00:58]}  Re7 {[%clk 0:01:06]} 26. Rbc1 {[%clk 0:00:48]}  h5 {[%clk 0:01:05]} 27. Nb3 {[%clk 0:00:29]}  Qb2 {[%clk 0:01:01]} 28. Qc3 {[%clk 0:00:19]}  Qxc3 {[%clk 0:00:09]} 29. Rxc3 {[%clk 0:00:19]}  Kg7 {[%clk 0:00:06]} 30. h4 {[%clk 0:00:16]}  Kh6 {[%clk 0:00:06]} 31. Ke3 {[%clk 0:00:14]}  Rg8 {[%clk 0:00:06]} 32. Rg1 {[%clk 0:00:14]}  Reg7 {[%clk 0:00:07]} 33. Kf2 {[%clk 0:00:13]}  e3+ {[%clk 0:00:03]} 34. Rxe3 {[%clk 0:00:10]}  Ne4+ {[%clk 0:00:04]} 35. Rxe4 {[%clk 0:00:06]}  fxe4 {[%clk 0:00:05]} 36. Nd2 {[%clk 0:00:06]}  Re7 {[%clk 0:00:04]} 37. Ke3 {[%clk 0:00:05]}  Bc8 {[%clk 0:00:04]} 38. Nf1 {[%clk 0:00:00]}  Bf5 {[%clk 0:00:04]} 0-1

[Event "January 2 Early 2024"]
[Site "https://www.chess.com"]
[Date "2024.01.02"]
[Round "10"]
[White "Tasev, Dejan"]
[Black "Sharapov, Evgeny"]
[Result "1-0"]
[Board "61"]
[TimeControl "180+1"]
[WhiteFideId "936618"]
[BlackFideId "14103133"]
[WhiteElo "2701"]
[BlackElo "2554"]
[WhiteTeam "SRB"]
[BlackTeam "UKR"]
[WhiteClock "0:00:25"]
[BlackClock "0:01:39"]

1. e4 {[%clk 0:03:00]}  c5 {[%clk 0:02:59]} 2. Nf3 {[%clk 0:03:00]}  d6 {[%clk 0:02:59]} 3. Nc3 {[%clk 0:03:00]}  e5 {[%clk 0:02:59]} 4. Bc4 {[%clk 0:02:59]}  Be7 {[%clk 0:02:59]} 5. d3 {[%clk 0:02:59]}  Nf6 {[%clk 0:02:59]} 6. Nd2 {[%clk 0:03:00]}  O-O {[%clk 0:02:59]} 7. Nf1 {[%clk 0:03:00]}  Bd7 {[%clk 0:03:00]} 8. Ne3 {[%clk 0:03:00]}  Bc6 {[%clk 0:03:00]} 9. O-O {[%clk 0:02:59]}  Nbd7 {[%clk 0:03:00]} 10. f4 {[%clk 0:02:50]}  Nb6 {[%clk 0:03:00]} 11. b3 {[%clk 0:02:48]}  d5 {[%clk 0:02:59]} 12. exd5 {[%clk 0:02:36]}  Nfxd5 {[%clk 0:02:58]} 13. Ncxd5 {[%clk 0:02:30]}  Nxd5 {[%clk 0:02:58]} 14. Nxd5 {[%clk 0:02:15]}  Bxd5 {[%clk 0:02:57]} 15. fxe5 {[%clk 0:02:09]}  Bc6 {[%clk 0:02:57]} 16. d4 {[%clk 0:01:55]}  cxd4 {[%clk 0:02:54]} 17. Qg4 {[%clk 0:01:46]}  Kh8 {[%clk 0:02:32]} 18. Bd3 {[%clk 0:01:37]}  Qd5 {[%clk 0:02:27]} 19. Qh3 {[%clk 0:01:21]}  g6 {[%clk 0:02:22]} 20. Bh6 {[%clk 0:01:17]}  Qxe5 {[%clk 0:02:18]} 21. Rae1 {[%clk 0:01:06]}  Qd6 {[%clk 0:02:15]} 22. Bf4 {[%clk 0:00:53]}  Qd8 {[%clk 0:01:45]} 23. Be5+ {[%clk 0:00:45]}  Kg8 {[%clk 0:01:45]} 24. Qh6 {[%clk 0:00:38]}  f6 {[%clk 0:01:44]} 25. Bxg6 {[%clk 0:00:36]}  hxg6 {[%clk 0:01:44]} 26. Qxg6+ {[%clk 0:00:35]}  Kh8 {[%clk 0:01:39]} 27. Rf5 {[%clk 0:00:25]} 1-0

[Event "January 2 Early 2024"]
[Site "https://www.chess.com"]
[Date "2024.01.02"]
[Round "10"]
[White "Weisz, Bryan"]
[Black "Gritsenko, Nikolai"]
[Result "0-1"]
[Board "65"]
[TimeControl "180+1"]
[WhiteFideId "30934133"]
[BlackFideId "14112493"]
[WhiteElo "2521"]
[BlackElo "2668"]
[WhiteTeam "USA"]
[BlackTeam "UKR"]
[WhiteClock "0:00:09"]
[BlackClock "0:00:13"]

1. e4 {[%clk 0:03:00]}  f6 {[%clk 0:02:59]} 2. d4 {[%clk 0:03:00]}  c6 {[%clk 0:02:59]} 3. Nf3 {[%clk 0:02:57]}  Na6 {[%clk 0:02:58]} 4. Nc3 {[%clk 0:02:48]}  g6 {[%clk 0:02:56]} 5. e5 {[%clk 0:02:37]}  Nc7 {[%clk 0:02:48]} 6. h4 {[%clk 0:02:26]}  d5 {[%clk 0:02:42]} 7. h5 {[%clk 0:02:26]}  g5 {[%clk 0:02:42]} 8. Bd3 {[%clk 0:02:23]}  Bg4 {[%clk 0:02:36]} 9. Be3 {[%clk 0:02:12]}  Qd7 {[%clk 0:02:23]} 10. Qd2 {[%clk 0:02:04]}  O-O-O {[%clk 0:02:21]} 11. Na4 {[%clk 0:02:00]}  b6 {[%clk 0:02:19]} 12. c4 {[%clk 0:01:51]}  dxc4 {[%clk 0:01:44]} 13. Bxc4 {[%clk 0:01:48]}  c5 {[%clk 0:01:36]} 14. Qc2 {[%clk 0:01:15]}  Bxf3 {[%clk 0:01:27]} 15. gxf3 {[%clk 0:00:48]}  cxd4 {[%clk 0:01:24]} 16. Rd1 {[%clk 0:00:37]}  fxe5 {[%clk 0:01:21]} 17. Bxg5 {[%clk 0:00:28]}  Nf6 {[%clk 0:01:12]} 18. Qb3 {[%clk 0:00:24]}  Qd6 {[%clk 0:01:01]} 19. Nc3 {[%clk 0:00:24]}  Kb8 {[%clk 0:00:58]} 20. Nb5 {[%clk 0:00:18]}  Nxb5 {[%clk 0:00:57]} 21. Bxb5 {[%clk 0:00:19]}  Nd7 {[%clk 0:00:31]} 22. f4 {[%clk 0:00:18]}  e4 {[%clk 0:00:28]} 23. Qa4 {[%clk 0:00:15]}  Nc5 {[%clk 0:00:27]} 24. Qc4 {[%clk 0:00:16]}  Bg7 {[%clk 0:00:25]} 25. O-O {[%clk 0:00:16]}  Bf6 {[%clk 0:00:23]} 26. b4 {[%clk 0:00:17]}  Nd3 {[%clk 0:00:21]} 27. Rxd3 {[%clk 0:00:12]}  exd3 {[%clk 0:00:21]} 28. Qxd3 {[%clk 0:00:13]}  Rhg8 {[%clk 0:00:21]} 29. Kh1 {[%clk 0:00:11]}  Bxg5 {[%clk 0:00:20]} 30. fxg5 {[%clk 0:00:12]}  Rxg5 {[%clk 0:00:20]} 31. Qf3 {[%clk 0:00:11]}  Rdg8 {[%clk 0:00:17]} 32. Ba6 {[%clk 0:00:11]}  Qd5 {[%clk 0:00:15]} 33. Qxd5 {[%clk 0:00:10]}  Rxd5 {[%clk 0:00:15]} 34. Be2 {[%clk 0:00:09]}  d3 {[%clk 0:00:14]} 35. Bf3 {[%clk 0:00:10]}  Rf5 {[%clk 0:00:14]} 36. Bd1 {[%clk 0:00:08]}  Rf4 {[%clk 0:00:14]} 37. Re1 {[%clk 0:00:09]}  Rh4# {[%clk 0:00:13]} 0-1

[Event "January 2 Early 2024"]
[Site "https://www.chess.com"]
[Date "2024.01.02"]
[Round "10"]
[White "Goncalves, Davi Sulzbacher"]
[Black "Koshulyan, Egor A."]
[Result "0-1"]
[Board "66"]
[TimeControl "180+1"]
[WhiteFideId "2154510"]
[BlackFideId "24237000"]
[WhiteElo "2519"]
[BlackElo "2665"]
[WhiteTeam "BRA"]
[BlackTeam "RUS"]
[WhiteClock "0:00:04"]
[BlackClock "0:00:49"]

1. d4 {[%clk 0:03:00]}  Nf6 {[%clk 0:02:58]} 2. c4 {[%clk 0:03:00]}  e5 {[%clk 0:02:49]} 3. dxe5 {[%clk 0:03:00]}  Ng4 {[%clk 0:02:50]} 4. Nf3 {[%clk 0:02:57]}  Bc5 {[%clk 0:02:45]} 5. e3 {[%clk 0:02:56]}  Nc6 {[%clk 0:02:45]} 6. Be2 {[%clk 0:02:51]}  O-O {[%clk 0:02:45]} 7. O-O {[%clk 0:02:47]}  Re8 {[%clk 0:02:41]} 8. a3 {[%clk 0:02:46]}  a5 {[%clk 0:02:40]} 9. b3 {[%clk 0:02:45]}  Ngxe5 {[%clk 0:02:40]} 10. Nxe5 {[%clk 0:02:44]}  Nxe5 {[%clk 0:02:41]} 11. Bb2 {[%clk 0:02:44]}  Ra6 {[%clk 0:02:42]} 12. Nc3 {[%clk 0:02:33]}  Rh6 {[%clk 0:02:41]} 13. g3 {[%clk 0:01:38]}  d6 {[%clk 0:02:34]} 14. Nd5 {[%clk 0:01:27]}  Bh3 {[%clk 0:02:24]} 15. Re1 {[%clk 0:01:26]}  Qd7 {[%clk 0:02:24]} 16. b4 {[%clk 0:01:22]}  Ba7 {[%clk 0:02:23]} 17. f4 {[%clk 0:00:38]}  Bg2 {[%clk 0:01:13]} 18. g4 {[%clk 0:00:12]}  Bxd5 {[%clk 0:01:06]} 19. cxd5 {[%clk 0:00:09]}  Bxe3+ {[%clk 0:01:05]} 20. Kg2 {[%clk 0:00:09]}  Bxf4 {[%clk 0:01:05]} 21. h3 {[%clk 0:00:07]}  Ng6 {[%clk 0:01:00]} 22. Bd3 {[%clk 0:00:07]}  Nh4+ {[%clk 0:01:00]} 23. Kf2 {[%clk 0:00:07]}  Be5 {[%clk 0:00:58]} 24. Re4 {[%clk 0:00:06]}  Bxb2 {[%clk 0:00:49]} 25. Qe2 {[%clk 0:00:04]} 0-1

[Event "January 2 Early 2024"]
[Site "https://www.chess.com"]
[Date "2024.01.02"]
[Round "10"]
[White "Vlassov, Nikolai"]
[Black "Beydullayeva, Govhar"]
[Result "1-0"]
[Board "67"]
[TimeControl "180+1"]
[WhiteFideId "4103360"]
[BlackFideId "13413015"]
[WhiteElo "2662"]
[BlackElo "2515"]
[WhiteTeam "FID"]
[BlackTeam "AZE"]
[WhiteClock "0:01:29"]
[BlackClock "0:01:25"]

1. e4 {[%clk 0:03:00]}  c5 {[%clk 0:03:00]} 2. c3 {[%clk 0:02:59]}  Nf6 {[%clk 0:02:58]} 3. e5 {[%clk 0:02:59]}  Nd5 {[%clk 0:02:59]} 4. d4 {[%clk 0:02:59]}  cxd4 {[%clk 0:02:59]} 5. cxd4 {[%clk 0:03:00]}  d6 {[%clk 0:02:58]} 6. Bc4 {[%clk 0:03:00]}  dxe5 {[%clk 0:02:48]} 7. dxe5 {[%clk 0:03:00]}  e6 {[%clk 0:02:48]} 8. Nc3 {[%clk 0:02:59]}  Nxc3 {[%clk 0:02:41]} 9. Qxd8+ {[%clk 0:02:59]}  Kxd8 {[%clk 0:02:42]} 10. bxc3 {[%clk 0:03:00]}  Kc7 {[%clk 0:02:35]} 11. Be3 {[%clk 0:02:55]}  Nc6 {[%clk 0:02:33]} 12. f4 {[%clk 0:02:55]}  b6 {[%clk 0:02:26]} 13. Nf3 {[%clk 0:02:53]}  h6 {[%clk 0:02:25]} 14. Ke2 {[%clk 0:02:49]}  Bb7 {[%clk 0:02:25]} 15. Rhd1 {[%clk 0:02:44]}  Ba3 {[%clk 0:02:16]} 16. Nd4 {[%clk 0:02:38]}  Nxd4+ {[%clk 0:02:06]} 17. cxd4 {[%clk 0:02:36]}  Bxg2 {[%clk 0:02:06]} 18. Rg1 {[%clk 0:02:34]}  Be4 {[%clk 0:01:59]} 19. Rxg7 {[%clk 0:02:33]}  Bg6 {[%clk 0:01:57]} 20. Bxe6 {[%clk 0:02:09]}  Bf8 {[%clk 0:01:57]} 21. Rxf7+ {[%clk 0:02:04]}  Bxf7 {[%clk 0:01:56]} 22. Bxf7 {[%clk 0:02:04]}  Kd7 {[%clk 0:01:56]} 23. f5 {[%clk 0:02:04]}  Ke7 {[%clk 0:01:56]} 24. Bd5 {[%clk 0:02:00]}  Rd8 {[%clk 0:01:56]} 25. f6+ {[%clk 0:02:01]}  Kd7 {[%clk 0:01:55]} 26. Rc1 {[%clk 0:01:55]}  Bb4 {[%clk 0:01:43]} 27. e6+ {[%clk 0:01:29]}  Kd6 {[%clk 0:01:25]} 28. Bb3 {[%clk 0:01:29]} 1-0

[Event "January 2 Early 2024"]
[Site "https://www.chess.com"]
[Date "2024.01.02"]
[Round "10"]
[White "Iskusnyh, Sergei"]
[Black "Kopczynski, Michal"]
[Result "0-1"]
[Board "68"]
[TimeControl "180+1"]
[WhiteFideId "4120027"]
[BlackFideId "1124200"]
[WhiteElo "2660"]
[BlackElo "2514"]
[WhiteTeam "RUS"]
[BlackTeam "POL"]
[WhiteClock "0:00:27"]
[BlackClock "0:00:40"]

1. d4 {[%clk 0:03:00]}  Nf6 {[%clk 0:02:59]} 2. c4 {[%clk 0:03:00]}  g6 {[%clk 0:03:00]} 3. g3 {[%clk 0:03:00]}  Bg7 {[%clk 0:03:00]} 4. Bg2 {[%clk 0:03:00]}  d6 {[%clk 0:03:01]} 5. Nc3 {[%clk 0:03:01]}  O-O {[%clk 0:03:02]} 6. Nf3 {[%clk 0:03:01]}  Nfd7 {[%clk 0:03:02]} 7. O-O {[%clk 0:02:59]}  Nc6 {[%clk 0:03:03]} 8. Bg5 {[%clk 0:02:46]}  h6 {[%clk 0:03:02]} 9. Be3 {[%clk 0:02:45]}  e5 {[%clk 0:03:02]} 10. Qd2 {[%clk 0:02:45]}  Kh7 {[%clk 0:03:02]} 11. dxe5 {[%clk 0:02:36]}  Ndxe5 {[%clk 0:03:01]} 12. Nxe5 {[%clk 0:02:27]}  Nxe5 {[%clk 0:03:02]} 13. b3 {[%clk 0:02:25]}  Rb8 {[%clk 0:03:01]} 14. Rad1 {[%clk 0:02:23]}  a6 {[%clk 0:02:59]} 15. Ba7 {[%clk 0:02:21]}  Ra8 {[%clk 0:02:59]} 16. Bd4 {[%clk 0:02:20]}  Rb8 {[%clk 0:02:48]} 17. Nd5 {[%clk 0:01:45]}  b6 {[%clk 0:02:42]} 18. f4 {[%clk 0:01:41]}  Nd7 {[%clk 0:02:28]} 19. Bxg7 {[%clk 0:01:40]}  Kxg7 {[%clk 0:02:29]} 20. Qc3+ {[%clk 0:01:38]}  Kh7 {[%clk 0:02:21]} 21. Nb4 {[%clk 0:01:22]}  Bb7 {[%clk 0:02:12]} 22. Bxb7 {[%clk 0:01:20]}  Rxb7 {[%clk 0:02:13]} 23. Nc6 {[%clk 0:01:20]}  Qf6 {[%clk 0:02:09]} 24. Qxf6 {[%clk 0:01:15]}  Nxf6 {[%clk 0:02:09]} 25. Rfe1 {[%clk 0:01:07]}  Re8 {[%clk 0:02:08]} 26. Kg2 {[%clk 0:01:07]}  b5 {[%clk 0:01:59]} 27. Rc1 {[%clk 0:01:05]}  Rb6 {[%clk 0:01:48]} 28. Na5 {[%clk 0:01:04]}  c5 {[%clk 0:01:40]} 29. Kf3 {[%clk 0:01:00]}  Ne4 {[%clk 0:01:32]} 30. Red1 {[%clk 0:01:00]}  f5 {[%clk 0:01:28]} 31. Rd3 {[%clk 0:00:46]}  b4 {[%clk 0:01:19]} 32. Rg1 {[%clk 0:00:44]}  Nc3 {[%clk 0:01:04]} 33. Rd2 {[%clk 0:00:44]}  Ne4 {[%clk 0:00:40]} 34. g4 {[%clk 0:00:41]}  Nxd2+ {[%clk 0:00:40]} 35. Kf2 {[%clk 0:00:37]}  Ne4+ {[%clk 0:00:40]} 36. Kf3 {[%clk 0:00:36]}  fxg4+ {[%clk 0:00:41]} 37. Rxg4 {[%clk 0:00:35]}  Nc3 {[%clk 0:00:40]} 38. h4 {[%clk 0:00:27]}  Nxe2 {[%clk 0:00:40]} 0-1

[Event "January 2 Early 2024"]
[Site "https://www.chess.com"]
[Date "2024.01.02"]
[Round "10"]
[White "Kuzhylnyi, Oleksandr"]
[Black "Yashmetov, Mikhail"]
[Result "1-0"]
[Board "69"]
[TimeControl "180+1"]
[WhiteFideId "34110500"]
[BlackFideId "24198900"]
[WhiteElo "2660"]
[BlackElo "2513"]
[WhiteTeam "UKR"]
[BlackTeam "RUS"]
[WhiteClock "0:00:20"]
[BlackClock "0:00:00"]

1. b3 {[%clk 0:02:58]}  b6 {[%clk 0:02:59]} 2. Bb2 {[%clk 0:02:57]}  Bb7 {[%clk 0:02:59]} 3. e3 {[%clk 0:02:57]}  Nf6 {[%clk 0:02:58]} 4. Nf3 {[%clk 0:02:58]}  e6 {[%clk 0:02:59]} 5. c4 {[%clk 0:02:56]}  c5 {[%clk 0:02:59]} 6. g3 {[%clk 0:02:56]}  g6 {[%clk 0:02:59]} 7. Bg2 {[%clk 0:02:57]}  Bg7 {[%clk 0:03:00]} 8. O-O {[%clk 0:02:57]}  O-O {[%clk 0:03:00]} 9. d4 {[%clk 0:02:58]}  d6 {[%clk 0:03:00]} 10. Nc3 {[%clk 0:02:57]}  Nc6 {[%clk 0:03:00]} 11. dxc5 {[%clk 0:02:57]}  dxc5 {[%clk 0:03:00]} 12. Qe2 {[%clk 0:02:55]}  Qe7 {[%clk 0:02:59]} 13. Rfd1 {[%clk 0:02:51]}  Rfd8 {[%clk 0:03:00]} 14. h3 {[%clk 0:02:49]}  Rxd1+ {[%clk 0:02:59]} 15. Rxd1 {[%clk 0:02:49]}  Rd8 {[%clk 0:03:00]} 16. Rd2 {[%clk 0:02:43]}  Ne8 {[%clk 0:02:57]} 17. Qd1 {[%clk 0:02:41]}  Rxd2 {[%clk 0:02:56]} 18. Qxd2 {[%clk 0:02:42]}  Qd6 {[%clk 0:02:57]} 19. Qxd6 {[%clk 0:02:38]}  Nxd6 {[%clk 0:02:58]} 20. Nd2 {[%clk 0:02:32]}  Nb4 {[%clk 0:02:58]} 21. Bxb7 {[%clk 0:02:30]}  Nxb7 {[%clk 0:02:59]} 22. Ndb1 {[%clk 0:02:22]}  Nxa2 {[%clk 0:02:58]} 23. Nxa2 {[%clk 0:02:21]}  Bxb2 {[%clk 0:02:57]} 24. Kf1 {[%clk 0:02:21]}  Na5 {[%clk 0:02:57]} 25. Nd2 {[%clk 0:02:21]}  Kf8 {[%clk 0:02:55]} 26. Ke2 {[%clk 0:02:21]}  Ke7 {[%clk 0:02:53]} 27. Kd3 {[%clk 0:02:21]}  f5 {[%clk 0:02:52]} 28. Kc2 {[%clk 0:02:22]}  Be5 {[%clk 0:02:52]} 29. Nc1 {[%clk 0:02:21]}  Nc6 {[%clk 0:02:51]} 30. Nd3 {[%clk 0:02:22]}  Bc7 {[%clk 0:02:47]} 31. h4 {[%clk 0:02:20]}  e5 {[%clk 0:02:44]} 32. Nb1 {[%clk 0:02:08]}  e4 {[%clk 0:02:43]} 33. Nc1 {[%clk 0:02:09]}  Ne5 {[%clk 0:02:37]} 34. Kd2 {[%clk 0:02:05]}  h6 {[%clk 0:02:29]} 35. Nc3 {[%clk 0:02:04]}  Bb8 {[%clk 0:02:21]} 36. Ke2 {[%clk 0:01:58]}  Nc6 {[%clk 0:02:20]} 37. Nd5+ {[%clk 0:01:54]}  Ke6 {[%clk 0:02:19]} 38. Kd2 {[%clk 0:01:55]}  Be5 {[%clk 0:02:19]} 39. Ne2 {[%clk 0:01:52]}  Nb4 {[%clk 0:02:18]} 40. Nxb4 {[%clk 0:01:51]}  cxb4 {[%clk 0:02:19]} 41. Nd4+ {[%clk 0:01:41]}  Kd7 {[%clk 0:02:01]} 42. Nc2 {[%clk 0:01:30]}  a5 {[%clk 0:01:57]} 43. Nd4 {[%clk 0:01:20]}  Bxd4 {[%clk 0:01:51]} 44. exd4 {[%clk 0:01:21]}  g5 {[%clk 0:01:52]} 45. hxg5 {[%clk 0:01:10]}  hxg5 {[%clk 0:01:53]} 46. Ke3 {[%clk 0:01:02]}  Kc6 {[%clk 0:01:53]} 47. g4 {[%clk 0:00:55]}  fxg4 {[%clk 0:01:51]} 48. Kxe4 {[%clk 0:00:52]}  Kd6 {[%clk 0:01:35]} 49. Kd3 {[%clk 0:00:40]}  Ke6 {[%clk 0:01:30]} 50. Ke4 {[%clk 0:00:37]}  Kd6 {[%clk 0:01:16]} 51. Kd3 {[%clk 0:00:35]}  Kc6 {[%clk 0:00:54]} 52. Ke4 {[%clk 0:00:29]}  b5 {[%clk 0:00:42]} 53. d5+ {[%clk 0:00:20]}  Kc5 {[%clk 0:00:42]} 54. cxb5 {[%clk 0:00:19]}  Kxb5 {[%clk 0:00:30]} 55. Ke5 {[%clk 0:00:18]}  a4 {[%clk 0:00:30]} 56. bxa4+ {[%clk 0:00:16]}  Kxa4 {[%clk 0:00:30]} 57. d6 {[%clk 0:00:17]}  b3 {[%clk 0:00:31]} 58. d7 {[%clk 0:00:18]}  b2 {[%clk 0:00:32]} 59. d8=Q {[%clk 0:00:18]}  b1=Q {[%clk 0:00:32]} 60. Qa8+ {[%clk 0:00:18]}  Kb3 {[%clk 0:00:33]} 61. Qb7+ {[%clk 0:00:19]}  Kc2 {[%clk 0:00:33]} 62. Qxb1+ {[%clk 0:00:20]}  Kxb1 {[%clk 0:00:34]} 63. Kf5 {[%clk 0:00:20]}  Kc2 {[%clk 0:00:33]} 64. Kxg4 {[%clk 0:00:20]}  Kd3 {[%clk 0:00:33]} 65. Kxg5 {[%clk 0:00:20]}  Ke4 {[%clk 0:00:34]} 66. f4 {[%clk 0:00:20]}  Kd5 {[%clk 0:00:35]} 67. f5 {[%clk 0:00:18]}  Kd6 {[%clk 0:00:35]} 68. Kg6 {[%clk 0:00:19]}  Kd7 {[%clk 0:00:36]} 69. Kg7 {[%clk 0:00:19]}  Ke8 {[%clk 0:00:00]} 70. f6 {[%clk 0:00:20]} 1-0